bitfinex/quotes_ETHUSD_20241129
["timestamp","ask_amount","ask_price","bid_price","bid_amount"]
[1732842429002,0.26045503,3568.5,3567.9,3.16674718]
[1732842429206,0.26045503,3568.4,3567.9,3.16674718]
[1732842429376,0.26035962,3568.4,3568.0,0.05729178]
[1732842429581,0.8237,3568.9,3568.0,2.85997178]
[1732842429903,2.80216,3568.7,3568.0,3.57146502]
[1732842430518,3.62568,3568.9,3568.0,0.74076107]
[1732842430832,0.7689,3568.6,3568.0,0.05729178]
[1732842431041,0.7689,3568.1,3567.3,0.8247]
[1732842431217,2.80269,3568.0,3567.3,0.8247]
[1732842431390,0.7689,3568.1,3567.4,2.80315]
[1732842431695,0.7689,3568.1,3567.5,0.362785]
[1732842431899,1.19632117,3568.4,3567.6,0.02802756]
[1732842432203,3.12553286,3569.4,3567.6,0.02802756]
[1732842432204,0.7799,3569.1,3568.6,2.80221]
[1732842432529,0.26035137,3569.0,3568.6,0.638266]
[1732842432723,0.7799,3569.1,3568.0,2.80261]
[1732842432724,2.80206,3568.8,3568.0,2.80261]
[1732842432929,0.7799,3568.7,3567.3,2.80316]
[1732842433150,0.7799,3568.5,3567.3,2.80316]
[1732842433304,2.80292,3567.7,3566.9,3.58154]
[1732842433489,0.7799,3567.6,3567.3,2.80322]
[1732842433689,2.80273,3568.0,3567.4,2.80313]
[1732842433690,0.7799,3568.0,3567.4,2.80313]
[1732842434091,3.42672129,3568.5,3567.4,0.02802789]
[1732842434092,0.20808335,3568.1,3567.4,0.02802789]
[1732842434292,0.25993636,3568.2,3567.5,3.581]
[1732842434492,0.80079881,3568.3,3567.6,2.80293]
[1732842434823,0.25992877,3568.2,3567.6,2.80293]
[1732842435002,0.25992877,3568.2,3567.5,0.778]
[1732842435003,2.80253,3568.2,3567.5,0.778]
[1732842435198,0.7799,3568.3,3567.4,2.80313]
[1732842435199,3.58242,3568.3,3567.4,2.80313]
[1732842435535,0.25984915,3568.2,3567.6,2.803]
[1732842435860,0.25993675,3568.2,3567.6,2.803]
[1732842436045,0.25993675,3568.2,3567.7,0.05817986]
[1732842436221,3.58238,3568.3,3567.4,3.4441]
[1732842436561,3.58238,3568.3,3567.8,0.05817986]
[1732842436770,3.58238,3568.3,3567.4,3.4441]
[1732842436920,3.58238,3568.3,3567.9,0.05822168]
[1732842437122,0.7731,3568.0,3566.9,2.80354]
[1732842437354,0.02089881,3567.9,3566.9,2.80354]
[1732842437522,2.80288,3567.8,3566.9,2.80354]
[1732842437874,0.02089881,3567.7,3566.9,2.80354]
[1732842438155,0.02089881,3567.7,3566.9,3.161624]
[1732842438156,0.7599,3567.6,3566.9,3.161624]
[1732842438523,0.02089881,3567.5,3566.9,0.358084]
[1732842438753,2.82398881,3567.5,3566.9,0.358084]
[1732842439354,2.82398881,3567.5,3566.7,2.80369]
[1732842439562,0.02089881,3567.5,3566.8,2.8036]
[1732842439934,3.56291,3567.6,3566.8,2.8036]
[1732842440320,0.02089881,3567.5,3566.5,3.37713071]
[1732842440565,0.7896,3567.2,3566.5,0.57327071]
[1732842441066,0.7896,3567.2,3566.5,0.91099678]
[1732842441440,3.59295,3567.2,3566.5,0.91099678]
[1732842441761,0.7896,3567.2,3566.5,3.71484678]
[1732842442263,0.7896,3567.2,3565.4,0.1]
[1732842442264,2.80372,3566.7,3565.6,0.8236]
[1732842442432,0.7762,3566.6,3566.0,2.80424]
[1732842443491,0.7762,3566.6,3566.1,2.80418]
[1732842443673,0.7762,3566.6,3566.2,2.80409]
[1732842444521,0.7939,3567.0,3566.2,2.83212983]
[1732842444800,0.7939,3567.0,3566.4,2.80394]
[1732842448024,0.02089881,3566.9,3566.0,2.80426]
[1732842448175,0.02089881,3566.9,3565.6,1.38048346]
[1732842448376,3.59741,3567.0,3566.1,2.80412]
[1732842448610,3.59741,3567.0,3566.1,5.888652]
[1732842448809,3.59741,3567.0,3566.1,3.084532]
[1732842449194,3.59741,3567.0,3566.2,2.80407]
[1732842450422,3.59741,3567.0,3566.5,0.57275928]
[1732842450650,0.7933,3567.3,3566.9,2.80348]
[1732842450857,0.7933,3567.3,3567.0,2.80342]
[1732842451012,0.7933,3567.3,3567.0,0.0591523]
[1732842451321,0.8243,3566.9,3566.3,3.1124382]
[1732842451920,0.8191,3567.3,3566.5,0.7862]
[1732842452347,0.8191,3567.3,3566.7,2.8037]
[1732842453050,0.02089881,3567.2,3566.5,2.80383]
[1732842453921,0.8191,3567.3,3566.2,0.8312]
[1732842454116,0.8191,3567.3,3566.7,2.80364]
[1732842454455,0.8191,3567.3,3566.9,2.80355]
[1732842455356,0.25951959,3567.4,3567.3,2.80324]
[1732842455357,0.46723531,3567.4,3567.3,2.80324]
[1732842455560,0.43250944,3568.2,3567.6,2.80298]
[1732842455561,1.26424024,3568.0,3567.6,2.80298]
[1732842455760,0.48813905,3567.9,3567.4,2.80315]
[1732842455961,0.48813905,3567.9,3566.8,3.36560901]
[1732842455962,3.58733,3567.7,3566.8,3.36560901]
[1732842456117,0.7844,3567.2,3566.2,2.80406]
[1732842456320,3.12553286,3567.5,3566.2,2.80406]
[1732842456321,2.80356,3566.9,3566.2,2.80406]
[1732842456631,0.7844,3567.0,3566.4,2.80393]
[1732842457220,0.25965709,3566.9,3566.4,2.80393]
[1732842457455,0.20772255,3566.9,3566.4,2.80393]
[1732842457960,0.25973199,3566.8,3566.2,2.8041]
[1732842458165,0.02089881,3566.7,3566.2,3.364935]
[1732842458865,0.02089881,3566.7,3566.2,0.560835]
[1732842459039,0.20782972,3566.9,3566.3,2.804]
[1732842459230,0.46760937,3566.8,3566.3,2.804]
[1732842459427,0.99209677,3567.0,3566.4,2.80392]
[1732842459751,0.46763437,3566.9,3566.5,2.80385]
[1732842460070,0.99209677,3567.0,3566.8,2.8036]
[1732842460639,0.99209677,3567.0,3566.5,2.80385]
[1732842460839,0.48867144,3566.9,3566.5,2.80385]
[1732842461063,0.46777263,3566.8,3566.5,2.80385]
[1732842461339,0.46777263,3566.8,3566.3,3.4209115]
[1732842461340,0.99209677,3567.0,3566.6,2.80378]
[1732842461566,0.46780214,3566.9,3566.6,2.80378]
[1732842461763,0.99209677,3567.0,3566.7,2.8037]
[1732842461963,0.20791704,3566.9,3566.7,2.8037]
[1732842462172,0.99209677,3567.0,3566.5,2.80383]
[1732842462369,0.2080402,3566.9,3566.4,2.80394]
[1732842462580,0.2080402,3566.8,3566.6,2.80377]
[1732842462745,0.99209677,3567.0,3566.6,2.80377]
[1732842462951,0.20803878,3566.9,3566.6,2.80377]
[1732842463184,0.20803878,3566.8,3566.6,2.80377]
[1732842463340,0.99209677,3567.0,3566.6,2.80377]
[1732842463540,0.48921951,3566.9,3566.5,2.80386]
[1732842463752,0.20814334,3566.8,3566.5,2.80386]
[1732842463965,0.20814334,3566.7,3566.6,2.80377]
[1732842464137,0.20815635,3566.7,3566.6,2.80377]
[1732842465282,0.20815635,3566.7,3566.0,0.02803705]
[1732842465283,0.20815635,3566.7,3566.2,2.80406]
[1732842465439,0.20815635,3566.6,3566.3,0.28320971]
[1732842465672,1.03371712,3566.5,3565.4,3.61985]
[1732842465874,0.48959598,3566.4,3565.4,3.61985]
[1732842466075,3.27272178,3566.3,3565.5,0.05921852]
[1732842466302,0.8254,3566.1,3565.5,0.05921852]
[1732842466514,0.20831712,3566.0,3565.5,0.05921852]
[1732842466731,0.20831712,3565.9,3565.5,0.05921852]
[1732842466882,0.8254,3566.1,3565.5,0.05921852]
[1732842467077,0.46870782,3566.0,3565.5,0.05921852]
[1732842467418,0.20831348,3565.9,3565.5,0.05921852]
[1732842467582,0.20834316,3565.8,3565.5,0.05921852]
[1732842467781,0.8254,3566.1,3565.5,0.05921852]
[1732842467782,0.26042764,3566.0,3565.5,0.62609937]
[1732842468023,0.20833924,3565.9,3565.5,0.62609937]
[1732842468312,0.20833924,3565.8,3565.6,0.05946964]
[1732842468532,0.26039693,3566.0,3565.6,0.05946964]
[1732842468694,0.8254,3566.1,3565.6,0.05946964]
[1732842468893,0.2604011,3566.0,3565.6,0.05946964]
[1732842469091,0.8254,3566.1,3565.6,0.05946964]
[1732842469308,0.2603792,3566.0,3565.6,0.05946964]
[1732842469522,0.8254,3566.1,3565.6,0.05946964]
[1732842469705,0.7918,3566.4,3565.7,0.7979]
[1732842470040,0.7918,3566.4,3565.8,2.80436]
[1732842470197,0.7918,3566.4,3565.8,0.05944522]
[1732842470401,0.22924039,3566.3,3565.8,0.05944522]
[1732842470631,0.20834158,3566.2,3565.8,0.05944522]
[1732842470932,0.7918,3566.4,3565.9,0.05939988]
[1732842471245,0.7918,3566.4,3565.7,2.80448]
[1732842471246,0.20835911,3566.3,3565.7,2.80448]
[1732842471530,0.7918,3566.4,3566.0,0.05939639]
[1732842471826,0.20835286,3566.3,3565.7,3.36539]
[1732842472035,0.7918,3566.4,3566.1,0.05938244]
[1732842472197,0.22925653,3566.3,3565.7,2.80448]
[1732842472395,0.02089881,3566.3,3566.2,0.05938244]
[1732842472691,0.20836938,3566.3,3566.2,0.05938244]
[1732842472892,0.22926819,3566.3,3565.7,2.80448]
[1732842473167,0.20836938,3566.2,3565.7,2.80448]
[1732842473292,0.02089881,3566.3,3565.1,1.33818237]
[1732842473637,0.7918,3566.4,3565.8,2.80439]
[1732842473821,0.20829747,3566.3,3565.8,2.80439]
[1732842474021,1.05223982,3566.4,3565.8,2.80439]
[1732842474223,0.20829761,3566.3,3565.8,2.80439]
[1732842474436,0.7918,3566.4,3565.8,2.80439]
[1732842474624,0.20829123,3566.3,3565.8,2.80439]
[1732842474946,1.05216407,3566.4,3565.8,2.80439]
[1732842475112,0.20828723,3566.3,3565.8,2.80439]
[1732842475313,0.7918,3566.4,3565.8,2.80439]
[1732842475544,0.20827951,3566.3,3565.8,2.80439]
[1732842475709,0.7918,3566.4,3565.8,2.80439]
[1732842475906,0.22918839,3566.3,3565.8,2.80439]
[1732842476134,0.02089881,3566.3,3565.8,2.80439]
[1732842476615,0.7918,3566.4,3565.8,2.80439]
[1732842476616,1.05213476,3566.4,3565.8,2.80439]
[1732842476815,0.20826944,3566.3,3565.7,2.80448]
[1732842477153,0.7918,3566.4,3565.8,0.280448]
[1732842477319,0.7918,3566.4,3565.8,2.8044]
[1732842477808,1.3285,3566.2,3565.2,2.80489]
[1732842478014,0.7785,3566.2,3565.1,1.36622911]
[1732842478255,0.7785,3566.2,3565.6,2.8045]
[1732842478619,0.02089881,3566.1,3565.4,5.60946]
[1732842479163,0.02089881,3566.1,3565.4,2.80473]
[1732842479311,0.02089881,3566.1,3565.1,1.33818237]
[1732842479312,0.8073,3565.9,3565.1,0.56268237]
[1732842479513,0.8073,3565.9,3564.7,2.80523]
[1732842479514,0.8073,3565.3,3564.1,0.7833]
[1732842479849,0.7523,3564.6,3563.6,2.80615]
[1732842480048,0.57089881,3564.5,3563.8,2.80595]
[1732842480234,2.80552,3564.4,3563.7,2.80602]
[1732842480435,0.55,3564.3,3563.5,1.12256621]
[1732842480613,0.7523,3564.0,3563.5,0.29296621]
[1732842480822,0.55,3563.9,3563.6,2.80612]
[1732842481072,0.55,3563.9,3563.4,2.80623]
[1732842481220,0.55,3563.9,3563.7,0.05429794]
[1732842481554,0.55,3563.9,3563.5,2.80616]
[1732842481716,0.55,3563.9,3563.8,0.05430841]
[1732842481916,0.55,3563.9,3563.5,5.61232]
[1732842481917,0.7523,3564.0,3563.5,2.80616]
[1732842482142,0.7523,3564.0,3563.8,0.05430841]
[1732842482462,0.57089881,3563.9,3563.3,2.80635]
[1732842482631,0.55,3563.9,3562.9,0.8212]
[1732842482834,0.55,3563.9,3563.1,2.80648]
[1732842483033,2.82689881,3563.8,3562.9,3.62782]
[1732842483235,2.82689881,3563.8,3562.3,0.8086]
[1732842483236,0.55,3563.5,3562.3,0.8086]
[1732842483451,3.02089881,3563.4,3562.6,2.80693]
[1732842483652,3.37727881,3563.3,3562.6,2.80693]
[1732842483965,0.55,3563.3,3562.8,2.80677]
[1732842484267,0.55,3563.3,3562.3,0.8086]
[1732842484268,3.37728881,3563.3,3562.4,2.80709]
[1732842484422,3.37728881,3563.3,3562.5,2.80699]
[1732842484630,0.55,3563.3,3562.6,2.80693]
[1732842485164,0.55,3563.3,3562.4,2.80706]
[1732842485325,0.55,3563.1,3562.4,2.80706]
[1732842485519,0.55,3563.1,3562.4,3.368484]
[1732842486554,0.55,3563.1,3562.4,2.80706]
[1732842486931,0.55,3563.1,3562.5,2.80697]
[1732842487955,0.55,3563.1,3562.3,2.80716]
[1732842488247,0.7509,3563.2,3562.4,2.80709]
[1732842488579,6.35654,3563.1,3562.2,2.80723]
[1732842488763,2.80678,3562.8,3561.9,2.80748]
[1732842489069,0.55,3562.7,3561.8,5.61512]
[1732842489377,0.55,3562.7,3562.0,2.80734]
[1732842489673,0.55,3562.7,3561.8,3.50103187]
[1732842489861,0.55,3562.7,3562.0,2.80739]
[1732842490062,3.35688,3562.7,3561.9,2.80748]
[1732842490266,0.55,3562.3,3561.7,2.80763]
[1732842490972,0.55,3562.3,3561.8,2.80755]
[1732842491270,0.55,3562.3,3562.1,2.80732]
[1732842491477,0.55,3562.3,3561.8,2.80752]
[1732842491637,0.55,3562.3,3561.6,0.5570583]
[1732842491840,0.55,3562.3,3562.0,2.8074]
[1732842492795,0.55,3562.8,3562.3,2.80717]
[1732842492937,0.55,3562.8,3562.0,0.561504]
[1732842492938,0.02089881,3562.7,3562.0,3.368834]
[1732842493280,3.58844,3562.6,3561.8,2.80756]
[1732842493440,0.02089881,3562.5,3561.8,2.80756]
[1732842493641,3.58844,3562.6,3561.8,2.80756]
[1732842493837,3.12553286,3562.7,3561.6,2.80772]
[1732842493838,3.7924,3562.4,3561.6,2.80772]
[1732842494038,0.7924,3562.1,3561.7,0.0529645]
[1732842494247,0.55,3562.0,3561.7,0.0529645]
[1732842494848,0.55,3562.0,3561.9,2.80749]
[1732842495078,0.55,3562.0,3561.9,2.86043006]
[1732842496166,0.55,3562.0,3561.9,0.05294006]
[1732842496540,0.55,3562.0,3561.5,2.8078]
[1732842496739,0.55,3562.0,3561.9,0.05303782]
[1732842496948,0.55,3562.0,3561.5,2.8078]
[1732842497158,0.55,3562.0,3561.9,0.05303782]
[1732842497386,0.55,3562.0,3561.5,2.8078]
[1732842497680,3.55971,3562.0,3561.3,2.80796]
[1732842497846,0.55,3561.9,3561.6,0.05303782]
[1732842498046,0.55,3561.9,3561.3,2.80796]
[1732842498276,0.55,3561.9,3561.4,2.86100861]
[1732842498460,0.55,3561.9,3561.5,2.80773]
[1732842498792,0.55,3561.9,3561.4,2.86100861]
[1732842498793,0.55,3561.9,3561.6,2.80771]
[1732842498958,0.55,3561.9,3561.6,2.86085956]
[1732842499285,0.55,3562.2,3561.6,0.05314956]
[1732842499493,0.55,3562.0,3561.4,2.80788]
[1732842499789,0.7553,3562.1,3560.9,0.02807943]
[1732842499974,0.7553,3562.1,3561.9,2.80748]
[1732842500284,0.7553,3562.1,3562.0,0.05351607]
[1732842500482,1.3053,3562.1,3562.0,0.05351607]
[1732842500889,1.3053,3562.1,3562.0,2.80741]
[1732842501096,0.55,3562.3,3562.0,0.05351607]
[1732842501682,0.55,3562.3,3561.8,2.80756]
[1732842501888,0.55,3562.3,3561.9,0.05351607]
[1732842502050,0.55,3562.3,3562.1,2.80725]
[1732842502253,1.123626,3563.4,3561.9,3.14710368]
[1732842502254,0.7532,3562.8,3562.7,2.80685]
[1732842502451,0.7532,3563.3,3562.3,0.7823]
[1732842502800,0.1,3564.3,3563.5,2.80615]
[1732842502801,0.7532,3563.8,3563.5,2.80615]
[1732842502997,0.805,3564.2,3562.8,0.7643]
[1732842503151,0.805,3564.2,3563.7,2.80605]
[1732842503349,0.805,3564.2,3563.8,0.05325075]
[1732842503655,0.4139521,3564.1,3563.2,2.80639]
[1732842503853,0.805,3564.2,3563.5,2.80615]
[1732842504193,0.805,3564.2,3563.8,2.80597]
[1732842504348,0.805,3564.2,3563.6,0.05300647]
[1732842504553,3.12553286,3564.8,3564.1,2.80575]
[1732842504860,0.8215,3564.7,3564.2,0.05300298]
[1732842505199,1.77722929,3564.7,3563.9,2.80589]
[1732842505398,1.77722929,3564.7,3564.3,0.0528739]
[1732842505599,0.8215,3564.7,3564.3,2.80554]
[1732842505798,0.8215,3564.7,3564.4,0.0528739]
[1732842506294,0.02089881,3564.6,3564.5,0.05278321]
[1732842506458,0.02089881,3564.6,3564.2,2.8056]
[1732842506658,0.8215,3564.7,3564.3,0.05278321]
[1732842507103,3.0,3565.1,3564.3,2.85835321]
[1732842507403,3.94133286,3565.2,3564.3,2.85835321]
[1732842507404,0.8158,3565.2,3564.7,2.80524]
[1732842507577,0.02089881,3565.1,3564.7,2.80524]
[1732842507764,0.8158,3565.2,3564.7,2.80524]
[1732842507963,0.8158,3565.2,3564.8,0.05278321]
[1732842508379,0.83669881,3565.2,3564.7,2.80524]
[1732842508576,0.8158,3565.2,3564.7,2.80524]
[1732842508881,0.20704608,3565.4,3564.9,2.80512]
[1732842509081,0.7585,3565.6,3564.7,0.280524]
[1732842509082,0.7585,3565.6,3564.7,3.085784]
[1732842509263,2.82555881,3565.5,3564.8,0.05263674]
[1732842509604,0.96575059,3565.6,3564.8,0.05263674]
[1732842509605,0.20725059,3565.4,3564.8,2.85781674]
[1732842509766,3.7705016,3565.6,3564.8,2.85781674]
[1732842509971,0.2074116,3565.5,3564.8,2.85781674]
[1732842510368,3.2074116,3565.5,3564.8,2.85781674]
[1732842510569,0.7574116,3565.4,3564.8,2.85781674]
[1732842510809,0.7574116,3565.4,3564.8,0.05263674]
[1732842511182,0.55,3565.4,3564.7,2.80524]
[1732842511513,0.55,3565.4,3564.7,2.80527]
[1732842511666,0.55,3565.4,3564.8,0.05263674]
[1732842512406,0.55,3565.4,3564.8,2.85782674]
[1732842513204,3.35474,3565.4,3564.8,0.05263674]
[1732842513405,0.55,3565.0,3564.8,0.05263674]
[1732842513716,0.775,3564.5,3563.7,2.80601]
[1732842513885,0.775,3564.8,3563.8,0.05157951]
[1732842514086,0.55,3565.1,3564.5,2.80543]
[1732842514280,3.775,3565.2,3564.6,2.80535]
[1732842514494,0.55,3565.4,3564.9,2.80508]
[1732842514918,0.02089881,3565.3,3565.0,0.05157951]
[1732842515079,0.02089881,3565.3,3564.4,2.80544]
[1732842515392,0.55,3565.2,3564.5,2.85697951]
[1732842517314,0.55,3565.2,3564.5,5.66235951]
[1732842517621,0.55,3565.2,3564.5,2.85695951]
[1732842518152,0.55,3565.0,3564.5,0.05157951]
[1732842518428,0.55,3565.0,3564.4,2.80547]
[1732842518580,0.55,3565.0,3564.6,0.05157951]
[1732842518919,0.55,3565.0,3564.7,0.05157951]
[1732842519078,0.55,3565.0,3564.4,2.80547]
[1732842519280,0.55,3565.0,3564.5,0.05157951]
[1732842519723,0.02089881,3564.9,3564.5,0.05157951]
[1732842519877,3.0,3564.7,3564.0,2.80583]
[1732842520217,3.0,3564.7,3563.7,2.80599]
[1732842520218,0.7867,3564.4,3564.1,0.05157951]
[1732842520387,3.35567,3564.2,3564.1,0.05157951]
[1732842520594,3.35567,3564.2,3563.6,2.80613]
[1732842520595,0.55,3564.2,3563.6,2.80613]
[1732842520806,0.55,3564.3,3564.1,0.05157951]
[1732842521005,0.7867,3564.4,3563.8,2.80594]
[1732842521316,0.7867,3564.4,3563.9,2.8059]
[1732842521522,0.7867,3564.4,3564.0,0.05157951]
[1732842521981,0.02089881,3564.3,3564.0,0.05157951]
[1732842522187,0.7867,3564.4,3564.0,0.05157951]
[1732842522398,0.7867,3564.4,3563.9,2.80589]
[1732842522782,0.7867,3564.4,3564.0,0.05157951]
[1732842523216,0.7867,3564.4,3564.0,2.85732951]
[1732842523608,0.7867,3564.4,3564.0,0.05157951]
[1732842523984,0.7867,3564.4,3563.8,2.80598]
[1732842524215,0.7867,3564.4,3564.1,0.05170505]
[1732842524524,0.7867,3564.4,3564.2,0.05168064]
[1732842524727,3.35559,3564.3,3563.3,2.80638]
[1732842524911,3.35559,3564.3,3563.4,0.05188634]
[1732842525110,3.35559,3564.3,3563.6,2.80613]
[1732842525428,1.145909,3564.4,3563.4,0.05188634]
[1732842525429,0.7867,3564.4,3563.9,2.8059]
[1732842525822,0.02089881,3564.3,3563.9,2.8059]
[1732842526035,0.02089881,3564.3,3564.0,0.05190029]
[1732842526191,0.7867,3564.4,3564.0,0.05190029]
[1732842526388,3.59228,3564.4,3564.0,0.05190029]
[1732842526594,3.59228,3564.4,3563.6,2.80607]
[1732842526823,3.59228,3564.4,3564.1,0.05191424]
[1732842527025,3.59228,3564.4,3563.3,2.80631]
[1732842527026,2.80584,3564.0,3563.3,2.80631]
[1732842527331,3.35559,3564.3,3563.4,2.8063]
[1732842527531,3.12553286,3564.8,3563.0,0.02806383]
[1732842527532,0.55,3564.6,3563.9,0.8211]
[1732842527693,0.8149,3565.1,3564.4,2.80548]
[1732842528096,3.61993,3565.1,3564.5,0.05191075]
[1732842528497,0.8149,3565.1,3564.5,0.05191075]
[1732842528712,2.80505,3565.0,3564.5,0.05191075]
[1732842528919,0.8149,3565.1,3564.0,0.02805651]
[1732842529135,0.8149,3565.1,3563.9,0.8211]
[1732842529136,0.83579881,3565.1,3564.6,0.05190378]
[1732842529428,0.8149,3565.1,3564.6,2.80535]
[1732842529647,0.8149,3565.1,3564.7,2.85717378]
[1732842530199,0.20776328,3565.3,3564.7,2.85717378]
[1732842530404,0.20776328,3565.3,3564.7,3.62277378]
[1732842530657,0.20776328,3565.3,3564.7,3.57087]
[1732842530828,0.20776328,3565.3,3564.4,2.80551]
[1732842530829,2.805,3565.1,3564.8,0.05190378]
[1732842531034,3.35487,3565.3,3564.8,0.05190378]
[1732842531347,3.35487,3565.3,3564.5,2.80542]
[1732842531348,0.20815423,3565.2,3564.9,0.05190378]
[1732842531547,0.20815423,3565.2,3564.7,2.80521]
[1732842531706,0.20815423,3565.2,3564.8,0.05190378]
[1732842531908,3.82315626,3565.3,3564.5,2.80542]
[1732842532110,3.01304423,3565.2,3564.6,0.05190378]
[1732842532338,0.46869998,3565.1,3564.5,2.80542]
[1732842532547,0.20815423,3565.0,3564.6,2.80534]
[1732842532707,0.26054575,3565.2,3564.6,2.85724378]
[1732842532905,0.20844195,3565.1,3564.6,2.85724378]
[1732842533217,0.22934076,3565.0,3564.6,0.05190378]
[1732842533419,0.20844195,3564.9,3564.6,0.05190378]
[1732842533623,0.7808,3564.7,3563.7,0.8061]
[1732842533852,2.80552,3564.4,3563.4,3.6124]
[1732842534023,2.80568,3564.2,3563.8,0.05164923]
[1732842534220,2.80568,3564.2,3563.5,2.80619]
[1732842534221,0.22934076,3564.1,3563.5,2.80619]
[1732842534537,0.02089881,3564.1,3563.3,2.80635]
[1732842534745,2.80605,3563.8,3563.4,0.05164923]
[1732842534907,0.55,3563.9,3563.2,2.80646]
[1732842535110,2.80609,3563.7,3562.8,2.80674]
[1732842535411,3.37710881,3563.6,3562.8,2.80674]
[1732842535636,2.80623,3563.5,3562.9,0.05009694]
[1732842535833,0.02089881,3563.4,3562.9,0.05009694]
[1732842536251,2.80631,3563.4,3562.9,0.05009694]
[1732842536553,0.55,3563.6,3562.6,0.7643]
[1732842536843,2.80654,3563.2,3562.7,0.05009694]
[1732842537077,0.55,3563.4,3562.7,0.05009694]
[1732842537078,0.02089881,3563.1,3562.7,0.05009694]
[1732842537234,0.02089881,3563.1,3562.2,3.5882]
[1732842537235,0.02089881,3563.1,3562.2,0.781]
[1732842537420,3.63989,3562.8,3562.1,0.29318236]
[1732842537625,0.8331,3562.8,3561.9,1.06710761]
[1732842537848,0.8331,3562.8,3562.1,2.80732]
[1732842539240,0.8331,3562.8,3562.2,2.80725]
[1732842539666,0.8331,3562.8,3562.3,2.80716]
[1732842540168,2.80604,3563.8,3562.7,2.80678]
[1732842540169,0.7594,3563.4,3562.7,2.80678]
[1732842540327,2.80599,3563.8,3562.7,2.80678]
[1732842540328,3.56539,3563.8,3563.0,2.8066]
[1732842540526,0.20804022,3563.7,3562.8,2.80676]
[1732842540746,0.20804022,3563.7,3562.6,0.7709]
[1732842540747,2.80638,3563.3,3562.6,0.7709]
[1732842541033,2.80632,3563.4,3562.6,2.80692]
[1732842541339,2.80632,3563.4,3562.7,0.05009694]
[1732842541737,0.55,3563.3,3562.7,0.05009694]
[1732842543064,0.7594,3563.8,3563.1,2.80653]
[1732842543284,0.7594,3563.8,3562.8,0.7773]
[1732842543285,2.82700881,3563.7,3562.8,0.7773]
[1732842543574,2.82700881,3563.7,3562.5,2.80693]
[1732842543575,2.80615,3563.6,3562.9,0.05009694]
[1732842543864,2.80615,3563.6,3562.5,2.80698]
[1732842543865,2.80634,3563.4,3562.5,2.80698]
[1732842544166,2.82730881,3563.3,3562.2,0.7773]
[1732842544465,2.80663,3563.0,3562.3,0.05009694]
[1732842544696,0.55,3563.1,3562.4,2.80708]
[1732842545051,0.55,3563.1,3562.5,0.05050854]
[1732842545452,3.61834,3563.7,3563.0,2.80661]
[1732842545656,3.0,3563.8,3563.0,2.80661]
[1732842545955,0.55,3563.5,3562.6,0.7532]
[1732842546182,2.80638,3563.3,3562.7,0.05050854]
[1732842547567,2.80633,3563.4,3562.7,0.05050854]
[1732842547790,0.55,3563.3,3562.7,0.05050854]
[1732842548358,0.55,3563.3,3562.7,2.85729854]
[1732842548759,3.35638,3563.3,3562.7,0.05050854]
[1732842548992,4.055263,3563.3,3562.7,0.05050854]
[1732842549299,6.35623,3563.5,3562.7,2.85732854]
[1732842549459,3.55,3563.5,3562.7,2.85732854]
[1732842550199,3.0,3563.5,3562.7,0.05050854]
[1732842550363,0.8247,3564.3,3562.9,0.7642]
[1732842550564,0.43410228,3564.5,3563.9,2.80588]
[1732842550762,0.46881247,3564.6,3563.9,0.357008]
[1732842550994,0.46881247,3564.6,3563.4,3.12553286]
[1732842550995,0.46881247,3564.6,3564.2,0.7591]
[1732842551162,0.26045137,3564.8,3564.2,0.7591]
[1732842551364,2.80523,3564.8,3564.2,0.7591]
[1732842551569,2.80507,3565.0,3564.2,3.56476]
[1732842551885,2.80507,3565.0,3564.3,0.05050854]
[1732842552086,5.61019,3565.0,3564.3,0.05050854]
[1732842552292,0.55,3564.9,3564.3,0.05050854]
[1732842552604,3.0,3565.5,3564.3,0.69261839]
[1732842552815,0.46878369,3565.4,3564.3,0.05050854]
[1732842553106,2.80426,3566.0,3564.0,2.80576]
[1732842553107,0.46883385,3565.9,3565.3,0.8078]
[1732842553299,2.80447,3565.8,3565.3,0.8078]
[1732842553505,0.02089881,3565.7,3565.1,2.80496]
[1732842553664,0.02089881,3565.7,3565.4,0.05050854]
[1732842553865,0.02089881,3565.7,3565.1,2.80496]
[1732842554060,0.02089881,3565.7,3564.2,3.12553286]
[1732842554061,2.80457,3565.6,3565.5,0.05050854]
[1732842554372,2.80457,3565.6,3564.8,2.80517]
[1732842554373,3.7658,3565.6,3564.8,2.80517]
[1732842554575,0.02089881,3565.6,3564.6,2.80533]
[1732842554872,2.80483,3565.3,3564.5,0.7554]
[1732842555083,3.56637,3565.1,3564.7,0.05050854]
[1732842555293,3.73467569,3565.0,3564.1,0.7516]
[1732842555476,0.7614,3565.1,3564.1,0.7516]
[1732842555477,0.7614,3565.1,3564.8,0.05050854]
[1732842555870,0.55,3565.1,3564.9,0.05014242]
[1732842556011,3.0,3565.4,3564.9,0.05014242]
[1732842556230,3.61515,3565.9,3565.2,2.80487]
[1732842556391,3.61515,3565.9,3564.4,0.7845]
[1732842556392,2.8041,3566.3,3565.3,0.7845]
[1732842556577,2.8044,3565.9,3565.0,2.805]
[1732842556922,2.8044,3565.9,3564.8,3.5897]
[1732842556923,3.61555,3565.4,3565.1,0.04972384]
[1732842557076,0.8108,3565.4,3565.1,0.04972384]
[1732842557514,0.8108,3565.4,3564.6,2.80535]
[1732842557515,0.8108,3565.4,3564.7,2.80526]
[1732842557689,3.0,3565.5,3565.2,0.04971687]
[1732842557892,3.661537,3565.5,3564.8,2.80513]
[1732842558089,3.0,3565.5,3565.3,0.04971687]
[1732842558290,3.0,3565.5,3564.8,2.80513]
[1732842558813,3.0,3565.5,3564.9,0.04955302]
[1732842559024,3.0,3565.7,3564.9,2.85465302]
[1732842559192,0.55,3565.6,3564.9,0.04955302]
[1732842559389,3.0,3565.5,3564.8,2.80518]
[1732842559621,3.0,3565.5,3564.9,0.04957044]